[Event "The Kvibergspelen 2023"]
[Site "Kviberg Park Hotel & Conference, Krutvagen 2, Gothenburg, Sweden"]
[Date "2023.09.17"]
[Round "8.15"]
[White "Galvan Cipriani, Viviana"]
[Black "Ljung, Harald"]
[Result "0-1"]
[TimeControl "15 minutes + 5 seconds per move from move one (Round 1 - 4) / 90 minutes + 30 seconds per move from move one (Round 5 - 8)"]
[WhiteTitle "WFM"]
[WhiteFideId "32041144"]
[BlackFideId "1738178"]
[WhiteElo "2010"]
[BlackElo "2164"]

1. c4 {[%clk 01:24:29]} {[%emt 00:06:30]} Nf6 {[%clk 01:30:39]} {[%emt
00:00:21]} 2. Nc3 {[%clk 01:24:46]} {[%emt 00:00:14]} g6 {[%clk 01:30:36]}
{[%emt 00:00:32]} 3. g3 {[%clk 01:25:10]} {[%emt 00:00:06]} Bg7 {[%clk
01:31:02]} {[%emt 00:00:04]} 4. Bg2 {[%clk 01:25:33]} {[%emt 00:00:07]} O-O
{[%clk 01:31:27]} {[%emt 00:00:06]} 5. e4 {[%clk 01:25:34]} {[%emt 00:00:29]}
d6 {[%clk 01:31:41]} {[%emt 00:00:15]} 6. Nge2 {[%clk 01:25:59]} {[%emt
00:00:05]} c5 {[%clk 01:31:57]} {[%emt 00:00:14]} 7. O-O {[%clk 01:26:22]}
{[%emt 00:00:07]} Nc6 {[%clk 01:32:26]} {[%emt 00:00:01]} 8. d3 {[%clk
01:26:32]} {[%emt 00:00:20]} Bd7 {[%clk 01:29:47]} {[%emt 00:03:09]} 9. h3
{[%clk 01:21:17]} {[%emt 00:05:44]} Qc8 {[%clk 01:29:02]} {[%emt 00:01:16]} 10.
Kh2 {[%clk 01:21:41]} {[%emt 00:00:06]} h5 {[%clk 01:29:15]} {[%emt 00:00:18]}
11. f4 {[%clk 01:21:55]} {[%emt 00:00:16]} a6 {[%clk 01:25:50]} {[%emt
00:03:55]} 12. Be3 {[%clk 01:14:39]} {[%emt 00:07:45]} Rb8 {[%clk 01:22:46]}
{[%emt 00:03:33]} 13. Rc1 {[%clk 01:14:47]} {[%emt 00:00:23]} Qd8 {[%clk
01:11:41]} {[%emt 00:11:34]} 14. d4 {[%clk 00:55:37]} {[%emt 00:19:41]} cxd4
{[%clk 01:05:12]} {[%emt 00:07:00]} 15. Nxd4 {[%clk 00:48:03]} {[%emt
00:08:03]} Nxd4 {[%clk 01:04:39]} {[%emt 00:01:03]} 16. Bxd4 {[%clk 00:48:28]}
{[%emt 00:00:06]} b5 {[%clk 01:04:45]} {[%emt 00:00:24]} 17. e5 {[%clk
00:48:13]} {[%emt 00:00:44]} dxe5 {[%clk 01:03:00]} {[%emt 00:02:16]} 18. Bxe5
{[%clk 00:48:36]} {[%emt 00:00:07]} h4 {[%clk 00:54:14]} {[%emt 00:09:15]} 19.
g4 {[%clk 00:47:45]} {[%emt 00:01:21]} Rc8 {[%clk 00:46:18]} {[%emt 00:08:25]}
20. Rc2 {[%clk 00:36:37]} {[%emt 00:11:39]} Be6 {[%clk 00:37:31]} {[%emt
00:09:16]} 21. Rd2 {[%clk 00:31:45]} {[%emt 00:05:22]} Qa5 {[%clk 00:37:06]}
{[%emt 00:00:56]} 22. cxb5 {[%clk 00:29:41]} {[%emt 00:02:34]} axb5 {[%clk
00:37:13]} {[%emt 00:00:24]} 23. a3 {[%clk 00:29:42]} {[%emt 00:00:28]} Rfd8
{[%clk 00:31:50]} {[%emt 00:05:53]} 24. Rff2 {[%clk 00:26:17]} {[%emt
00:03:55]} Rxd2 {[%clk 00:30:02]} {[%emt 00:02:18]} 25. Rxd2 {[%clk 00:26:41]}
{[%emt 00:00:06]} Qb6 {[%clk 00:30:07]} {[%emt 00:00:25]} 26. Qe1 {[%clk
00:26:42]} {[%emt 00:00:29]} b4 {[%clk 00:29:42]} {[%emt 00:00:55]} 27. axb4
{[%clk 00:26:57]} {[%emt 00:00:15]} Qxb4 {[%clk 00:30:11]} {[%emt 00:00:01]} 28.
Qxh4 {[%clk 00:26:17]} {[%emt 00:01:10]} Nxg4+ {[%clk 00:29:53]} {[%emt
00:00:48]} 29. hxg4 {[%clk 00:17:14]} {[%emt 00:09:33]} Bxe5 {[%clk 00:30:19]}
{[%emt 00:00:04]} 30. Kg1 {[%clk 00:04:09]} {[%emt 00:13:36]} Qxf4 {[%clk
00:28:44]} {[%emt 00:02:04]} 31. Re2 {[%clk 00:00:31]} {[%emt 00:04:08]} Bd4+
{[%clk 00:26:59]} {[%emt 00:02:15]} 32. Kh1 {[%clk 00:00:54]} {[%emt 00:00:07]}
Bxc3 {[%clk 00:23:30]} {[%emt 00:03:59]} 33. bxc3 {[%clk 00:01:17]} {[%emt
00:00:07]} Rxc3 {[%clk 00:23:50]} {[%emt 00:00:10]} 34. Re1 {[%clk 00:01:02]}
{[%emt 00:00:44]} Qg3 {[%clk 00:18:30]} {[%emt 00:05:50]} 35. Qxg3 {[%clk
00:00:39]} {[%emt 00:00:54]} Rxg3 {[%clk 00:18:58]} {[%emt 00:00:02]} 36. Ra1
{[%clk 00:00:49]} {[%emt 00:00:19]} Rxg4 {[%clk 00:18:54]} {[%emt 00:00:35]} 37.
Ra7 {[%clk 00:01:06]} {[%emt 00:00:13]} Kf8 {[%clk 00:19:05]} {[%emt 00:00:18]}
38. Kh2 {[%clk 00:01:23]} {[%emt 00:00:13]} Rd4 {[%clk 00:19:26]} {[%emt
00:00:09]} 39. Kg3 {[%clk 00:01:33]} {[%emt 00:00:21]} Rd7 {[%clk 00:19:38]}
{[%emt 00:00:16]} 40. Ra8+ {[%clk 00:01:58]} {[%emt 00:00:06]} Kg7 {[%clk
00:20:04]} {[%emt 00:00:04]} 41. Re8 {[%clk 00:01:46]} {[%emt 00:00:42]} Kf6
{[%clk 00:20:14]} {[%emt 00:00:20]} 42. Kf4 {[%clk 00:02:06]} {[%emt 00:00:11]}
Bf5 {[%clk 00:20:35]} {[%emt 00:00:09]} 43. Bc6 {[%clk 00:02:22]} {[%emt
00:00:13]} Rc7 {[%clk 00:20:56]} {[%emt 00:00:10]} 44. Bd5 {[%clk 00:02:40]}
{[%emt 00:00:11]} e6 {[%clk 00:20:45]} {[%emt 00:00:42]} 45. Bg2 {[%clk
00:02:19]} {[%emt 00:00:51]} Rc3 {[%clk 00:20:56]} {[%emt 00:00:19]} 0-1

[Event "The Kvibergspelen 2023"]
[Site "Kviberg Park Hotel & Conference, Krutvagen 2, Gothenburg, Sweden"]
[Date "2023.09.17"]
[Round "8.16"]
[White "Kashwan, Hassan"]
[Black "Ollen, Martin"]
[Result "0-1"]
[TimeControl "15 minutes + 5 seconds per move from move one (Round 1 - 4) / 90 minutes + 30 seconds per move from move one (Round 5 - 8)"]
[WhiteFideId "137122555"]
[BlackFideId "1718983"]
[WhiteElo "1901"]
[BlackElo "2143"]

1. d4 {[%clk 01:22:52]} {[%emt 00:08:06]} Nf6 {[%clk 01:30:46]} {[%emt
00:00:15]} 2. c4 {[%clk 01:23:05]} {[%emt 00:00:17]} g6 {[%clk 01:31:10]}
{[%emt 00:00:06]} 3. Nc3 {[%clk 01:23:02]} {[%emt 00:00:33]} d5 {[%clk
01:31:34]} {[%emt 00:00:06]} 4. Nf3 {[%clk 01:22:51]} {[%emt 00:00:41]} Bg7
{[%clk 01:31:59]} {[%emt 00:00:05]} 5. h3 {[%clk 01:22:34]} {[%emt 00:00:47]}
O-O {[%clk 01:32:11]} {[%emt 00:00:18]} 6. e3 {[%clk 01:22:22]} {[%emt
00:00:42]} c5 {[%clk 01:31:50]} {[%emt 00:00:51]} 7. cxd5 {[%clk 01:16:29]}
{[%emt 00:06:22]} Nxd5 {[%clk 01:31:05]} {[%emt 00:01:15]} 8. Qb3 {[%clk
01:11:42]} {[%emt 00:05:18]} Nxc3 {[%clk 01:28:37]} {[%emt 00:02:58]} 9. bxc3
{[%clk 01:11:48]} {[%emt 00:00:23]} Nc6 {[%clk 01:27:09]} {[%emt 00:01:58]} 10.
Be2 {[%clk 01:04:32]} {[%emt 00:07:46]} Na5 {[%clk 01:06:41]} {[%emt 00:20:59]}
11. Qd1 {[%clk 01:03:26]} {[%emt 00:01:36]} Be6 {[%clk 01:02:10]} {[%emt
00:05:01]} 12. O-O {[%clk 00:52:30]} {[%emt 00:11:25]} Rc8 {[%clk 00:59:03]}
{[%emt 00:03:38]} 13. Nd2 {[%clk 00:51:30]} {[%emt 00:01:29]} a6 {[%clk
00:58:09]} {[%emt 00:01:26]} 14. Ba3 {[%clk 00:51:35]} {[%emt 00:00:24]} cxd4
{[%clk 00:58:17]} {[%emt 00:00:22]} 15. cxd4 {[%clk 00:51:40]} {[%emt
00:00:25]} b5 {[%clk 00:58:12]} {[%emt 00:00:35]} 16. Bb4 {[%clk 00:46:06]}
{[%emt 00:06:04]} Nc4 {[%clk 00:54:02]} {[%emt 00:04:40]} 17. Bxc4 {[%clk
00:45:57]} {[%emt 00:00:39]} Bxc4 {[%clk 00:45:44]} {[%emt 00:08:49]} 18. Nxc4
{[%clk 00:45:41]} {[%emt 00:00:45]} Rxc4 {[%clk 00:46:00]} {[%emt 00:00:14]} 19.
Qd2 {[%clk 00:45:56]} {[%emt 00:00:15]} Qd7 {[%clk 00:42:46]} {[%emt 00:03:44]}
20. Rac1 {[%clk 00:46:00]} {[%emt 00:00:25]} Rfc8 {[%clk 00:42:36]} {[%emt
00:00:41]} 21. Bc5 {[%clk 00:45:47]} {[%emt 00:00:43]} R8xc5 {[%clk 00:42:27]}
{[%emt 00:00:39]} 22. Rcd1 {[%clk 00:43:22]} {[%emt 00:02:55]} Rc8 {[%clk
00:42:02]} {[%emt 00:00:55]} 23. d5 {[%clk 00:42:23]} {[%emt 00:01:29]} Qd6
{[%clk 00:42:14]} {[%emt 00:00:18]} 24. Qe2 {[%clk 00:42:21]} {[%emt 00:00:33]}
Rc2 {[%clk 00:41:12]} {[%emt 00:01:31]} 25. Qg4 {[%clk 00:42:41]} {[%emt
00:00:10]} h5 {[%clk 00:41:21]} {[%emt 00:00:21]} 26. Qe4 {[%clk 00:41:30]}
{[%emt 00:01:41]} Rxa2 {[%clk 00:41:11]} {[%emt 00:00:40]} 27. Rc1 {[%clk
00:41:17]} {[%emt 00:00:43]} Rxc1 {[%clk 00:41:33]} {[%emt 00:00:08]} 28. Rxc1
{[%clk 00:41:39]} {[%emt 00:00:08]} Ra1 {[%clk 00:41:58]} {[%emt 00:00:05]} 0-1

[Event "The Kvibergspelen 2023"]
[Site "Kviberg Park Hotel & Conference, Krutvagen 2, Gothenburg, Sweden"]
[Date "2023.09.17"]
[Round "8.17"]
[White "Jarlskov, Daniel Tuk Hartso"]
[Black "Jogstad, Daniel"]
[Result "1/2-1/2"]
[TimeControl "15 minutes + 5 seconds per move from move one (Round 1 - 4) / 90 minutes + 30 seconds per move from move one (Round 5 - 8)"]
[BlackTitle "CM"]
[WhiteFideId "1463896"]
[BlackFideId "1718959"]
[WhiteElo "2038"]
[BlackElo "2137"]

1. d4 {[%clk 01:30:46]} {[%emt 00:00:14]} d5 {[%clk 01:30:35]} {[%emt
00:00:27]} 2. c4 {[%clk 01:30:47]} {[%emt 00:00:28]} c6 {[%clk 01:31:00]}
{[%emt 00:00:05]} 3. Nf3 {[%clk 01:30:48]} {[%emt 00:00:28]} Nf6 {[%clk
01:31:21]} {[%emt 00:00:10]} 4. g3 {[%clk 01:30:52]} {[%emt 00:00:26]} dxc4
{[%clk 01:29:50]} {[%emt 00:02:01]} 5. Bg2 {[%clk 01:31:05]} {[%emt 00:00:16]}
Nbd7 {[%clk 01:19:16]} {[%emt 00:11:04]} 6. O-O {[%clk 01:30:34]} {[%emt
00:01:02]} e6 {[%clk 01:19:28]} {[%emt 00:00:19]} 7. a4 {[%clk 01:29:00]}
{[%emt 00:02:02]} Be7 {[%clk 01:11:52]} {[%emt 00:08:07]} 8. Nbd2 {[%clk
01:27:20]} {[%emt 00:02:10]} O-O {[%clk 00:59:01]} {[%emt 00:13:22]} 9. Nxc4
{[%clk 01:26:47]} {[%emt 00:01:01]} c5 {[%clk 00:57:40]} {[%emt 00:01:52]} 10.
e3 {[%clk 01:21:31]} {[%emt 00:05:46]} Nb6 {[%clk 00:53:50]} {[%emt 00:04:20]}
11. Qe2 {[%clk 01:13:38]} {[%emt 00:08:23]} Bd7 {[%clk 00:52:20]} {[%emt
00:02:01]} 12. Nfe5 {[%clk 01:08:33]} {[%emt 00:05:33]} Qc7 {[%clk 00:46:08]}
{[%emt 00:06:42]} 13. a5 {[%clk 00:54:13]} {[%emt 00:14:51]} Nxc4 {[%clk
00:46:16]} {[%emt 00:00:23]} 14. Qxc4 {[%clk 00:54:40]} {[%emt 00:00:02]} Rac8
{[%clk 00:46:25]} {[%emt 00:00:22]} 15. Nxd7 {[%clk 00:54:38]} {[%emt
00:00:31]} Qxd7 {[%clk 00:46:10]} {[%emt 00:00:45]} 16. Rd1 {[%clk 00:53:56]}
{[%emt 00:01:12]} Rfd8 {[%clk 00:42:46]} {[%emt 00:03:54]} 17. Qb3 {[%clk
00:48:56]} {[%emt 00:05:29]} Rc7 {[%clk 00:43:12]} {[%emt 00:00:05]} 18. Bf3
{[%clk 00:48:25]} {[%emt 00:01:01]} Qc8 {[%clk 00:41:16]} {[%emt 00:02:25]} 19.
dxc5 {[%clk 00:47:38]} {[%emt 00:01:17]} Rxd1+ 20. Qxd1 {[%clk 00:48:07]} Bxc5
{[%clk 00:25:07]} {[%emt 00:14:19]} 21. Bd2 {[%clk 00:44:34]} {[%emt 00:04:04]}
Be7 {[%clk 00:25:09]} {[%emt 00:00:27]} 22. Bc3 {[%clk 00:44:35]} {[%emt
00:00:28]} Ne8 {[%clk 00:12:02]} {[%emt 00:13:37]} 23. Bd4 {[%clk 00:37:00]}
{[%emt 00:08:05]} Bc5 {[%clk 00:09:49]} {[%emt 00:02:44]} 24. Bxc5 {[%clk
00:33:42]} {[%emt 00:03:49]} Rxc5 {[%clk 00:10:13]} {[%emt 00:00:05]} 25. Qd4
{[%clk 00:33:59]} {[%emt 00:00:12]} e5 {[%clk 00:05:15]} {[%emt 00:05:29]} 26.
Qb4 {[%clk 00:30:00]} {[%emt 00:04:28]} Nd6 {[%clk 00:05:41]} {[%emt 00:00:05]}
27. Rd1 {[%clk 00:29:56]} {[%emt 00:00:33]} Qc7 {[%clk 00:04:07]} {[%emt
00:02:05]} 28. Bxb7 {[%clk 00:28:53]} {[%emt 00:01:32]} Nxb7 {[%clk 00:03:59]}
{[%emt 00:00:39]} 29. Qxb7 {[%clk 00:29:01]} {[%emt 00:00:21]} g6 {[%clk
00:03:31]} {[%emt 00:00:58]} 30. Qa8+ {[%clk 00:27:22]} {[%emt 00:02:10]} Kg7
{[%clk 00:03:30]} {[%emt 00:00:31]} 31. b4 {[%clk 00:26:51]} {[%emt 00:01:00]}
Rb5 {[%clk 00:03:12]} {[%emt 00:00:50]} 32. Qe4 {[%clk 00:25:33]} {[%emt
00:01:46]} Qe7 {[%clk 00:03:21]} {[%emt 00:00:21]} 33. Rb1 {[%clk 00:24:25]}
{[%emt 00:01:38]} Qc7 {[%clk 00:02:45]} {[%emt 00:01:07]} 34. h4 {[%clk
00:22:34]} {[%emt 00:02:21]} h5 {[%clk 00:03:08]} {[%emt 00:00:07]} 35. Kh2
{[%clk 00:22:17]} {[%emt 00:00:47]} Qc3 {[%clk 00:03:19]} {[%emt 00:00:16]} 36.
Kg2 {[%clk 00:19:27]} {[%emt 00:03:22]} Qd2 {[%clk 00:01:16]} {[%emt 00:02:33]}
37. Qc4 {[%clk 00:17:48]} {[%emt 00:02:09]} a6 {[%clk 00:01:43]} {[%emt
00:00:04]} 38. Rb3 {[%clk 00:16:32]} {[%emt 00:01:46]} Qd6 {[%clk 00:00:42]}
{[%emt 00:01:31]} 39. Kh2 {[%clk 00:15:10]} {[%emt 00:01:52]} Qd2 {[%clk
00:00:50]} {[%emt 00:00:21]} 40. Kg2 {[%clk 00:15:31]} {[%emt 00:00:09]} Qd6
{[%clk 00:01:16]} {[%emt 00:00:05]} 41. Qc3 {[%clk 00:15:29]} {[%emt 00:00:31]}
Qd5+ {[%clk 00:01:27]} {[%emt 00:00:20]} 42. f3 {[%clk 00:15:19]} {[%emt
00:00:39]} Qd1 {[%clk 00:01:04]} {[%emt 00:00:53]} 43. Rb2 {[%clk 00:15:38]}
{[%emt 00:00:11]} Qd6 {[%clk 00:01:02]} {[%emt 00:00:33]} 44. e4 {[%clk
00:15:33]} {[%emt 00:00:35]} Qd1 {[%clk 00:00:36]} {[%emt 00:00:55]} 45. Kh2
{[%clk 00:11:44]} {[%emt 00:04:18]} Qf1 {[%clk 00:00:41]} {[%emt 00:00:27]} 46.
f4 {[%clk 00:10:30]} {[%emt 00:01:44]} Kh7 {[%clk 00:00:35]} {[%emt 00:00:36]}
47. fxe5 {[%clk 00:09:30]} {[%emt 00:01:30]} Rb7 {[%clk 00:00:44]} {[%emt
00:00:21]} 48. Qc6 {[%clk 00:06:07]} {[%emt 00:03:53]} Rxb4 {[%clk 00:00:41]}
{[%emt 00:00:33]} 49. Rxb4 {[%clk 00:05:20]} {[%emt 00:01:17]} Qf2+ {[%clk
00:01:04]} {[%emt 00:00:06]} 50. Kh3 {[%clk 00:05:46]} {[%emt 00:00:04]} Qf1+
{[%clk 00:01:01]} {[%emt 00:00:33]} 51. Kh2 {[%clk 00:06:12]} {[%emt 00:00:05]}
Qe2+ {[%clk 00:00:54]} {[%emt 00:00:36]} 52. Kh3 {[%clk 00:05:50]} {[%emt
00:00:53]} Qf1+ {[%clk 00:01:03]} {[%emt 00:00:21]} 53. Kh2 {[%clk 00:06:13]}
{[%emt 00:00:07]} 1/2-1/2

[Event "The Kvibergspelen 2023"]
[Site "Kviberg Park Hotel & Conference, Krutvagen 2, Gothenburg, Sweden"]
[Date "2023.09.17"]
[Round "8.18"]
[White "Tripathi, Pratyush"]
[Black "Holm, Ragnar"]
[Result "1/2-1/2"]
[TimeControl "15 minutes + 5 seconds per move from move one (Round 1 - 4) / 90 minutes + 30 seconds per move from move one (Round 5 - 8)"]
[WhiteFideId "1763121"]
[BlackFideId "1505858"]
[WhiteElo "1735"]
[BlackElo "2128"]

1. d4 {[%clk 01:30:29]} {[%emt 00:00:30]} d5 {[%clk 01:30:51]} {[%emt
00:00:09]} 2. c4 {[%clk 01:30:53]} {[%emt 00:00:08]} e6 {[%clk 01:31:16]}
{[%emt 00:00:04]} 3. Nf3 {[%clk 01:31:16]} {[%emt 00:00:06]} Nf6 {[%clk
01:31:15]} {[%emt 00:00:31]} 4. Nc3 {[%clk 01:31:34]} {[%emt 00:00:12]} c6
{[%clk 01:31:10]} {[%emt 00:00:35]} 5. e3 {[%clk 01:31:54]} {[%emt 00:00:10]}
Nbd7 {[%clk 01:31:09]} {[%emt 00:00:32]} 6. Be2 {[%clk 01:32:18]} {[%emt
00:00:06]} Bd6 {[%clk 01:30:57]} {[%emt 00:00:41]} 7. O-O {[%clk 01:32:35]}
{[%emt 00:00:13]} O-O {[%clk 01:31:01]} {[%emt 00:00:26]} 8. b3 {[%clk
01:32:36]} {[%emt 00:00:29]} dxc4 {[%clk 01:21:21]} {[%emt 00:10:10]} 9. bxc4
{[%clk 01:32:28]} {[%emt 00:00:38]} e5 {[%clk 01:21:38]} {[%emt 00:00:13]} 10.
Qc2 {[%clk 01:32:49]} {[%emt 00:00:09]} Re8 {[%clk 01:19:59]} {[%emt 00:02:10]}
11. Rd1 {[%clk 01:30:56]} {[%emt 00:02:23]} Qe7 {[%clk 01:18:52]} {[%emt
00:01:37]} 12. Bb2 {[%clk 01:29:32]} {[%emt 00:01:54]} e4 {[%clk 01:08:43]}
{[%emt 00:10:40]} 13. Nd2 {[%clk 01:29:56]} {[%emt 00:00:05]} Nf8 {[%clk
01:08:54]} {[%emt 00:00:19]} 14. Nf1 {[%clk 01:22:04]} {[%emt 00:08:22]} Bf5
{[%clk 01:05:10]} {[%emt 00:04:14]} 15. a4 {[%clk 01:20:04]} {[%emt 00:02:29]}
h5 {[%clk 01:02:07]} {[%emt 00:03:33]} 16. Qb3 {[%clk 01:20:14]} {[%emt
00:00:21]} h4 {[%clk 00:59:24]} {[%emt 00:03:12]} 17. Ba3 {[%clk 01:20:15]}
{[%emt 00:00:30]} h3 {[%clk 00:58:58]} {[%emt 00:00:56]} 18. Ng3 {[%clk
01:18:28]} {[%emt 00:02:17]} Bg6 {[%clk 00:59:01]} {[%emt 00:00:26]} 19. gxh3
{[%clk 01:14:05]} {[%emt 00:04:53]} Bxa3 {[%clk 00:56:38]} {[%emt 00:02:54]} 20.
Qxa3 {[%clk 01:14:28]} {[%emt 00:00:07]} Qe6 {[%clk 00:56:58]} {[%emt
00:00:09]} 21. Bf1 {[%clk 01:10:02]} {[%emt 00:04:56]} Bh5 {[%clk 00:48:32]}
{[%emt 00:08:56]} 22. Nce2 {[%emt 00:02:14]} Bxe2 {[%clk 00:47:48]} {[%emt
00:01:12]} 23. Nxe2 {[%clk 01:07:47]} 1/2-1/2

[Event "The Kvibergspelen 2023"]
[Site "Kviberg Park Hotel & Conference, Krutvagen 2, Gothenburg, Sweden"]
[Date "2023.09.17"]
[Round "8.19"]
[White "Lindholm, Gustav"]
[Black "Hagevi, Vidar"]
[Result "1/2-1/2"]
[TimeControl "15 minutes + 5 seconds per move from move one (Round 1 - 4) / 90 minutes + 30 seconds per move from move one (Round 5 - 8)"]
[WhiteFideId "1736515"]
[BlackFideId "1767526"]
[WhiteElo "2102"]
[BlackElo "2037"]

1. d4 {[%clk 01:23:33]} {[%emt 00:00:27]} Nf6 {[%clk 01:30:54]} {[%emt
00:00:12]} 2. c4 {[%clk 01:23:57]} {[%emt 00:00:07]} e6 {[%clk 01:31:19]}
{[%emt 00:00:06]} 3. Nf3 {[%clk 01:24:23]} {[%emt 00:00:04]} d5 {[%clk
01:31:40]} {[%emt 00:00:08]} 4. Nc3 {[%clk 01:24:48]} {[%emt 00:00:05]} dxc4
{[%clk 01:32:05]} {[%emt 00:00:05]} 5. e4 {[%clk 01:24:49]} {[%emt 00:00:28]}
b5 {[%clk 01:32:28]} {[%emt 00:00:08]} 6. Bg5 {[%clk 01:23:18]} {[%emt
00:02:01]} a6 {[%clk 01:21:07]} {[%emt 00:11:51]} 7. a4 {[%clk 01:18:06]}
{[%emt 00:05:42]} b4 {[%clk 01:18:06]} {[%emt 00:03:31]} 8. Na2 {[%clk
01:18:06]} {[%emt 00:00:30]} h6 {[%clk 01:12:02]} {[%emt 00:06:34]} 9. Bxf6
{[%clk 01:15:10]} {[%emt 00:03:26]} Qxf6 {[%clk 01:12:11]} {[%emt 00:00:20]} 10.
Bxc4 {[%clk 01:15:32]} {[%emt 00:00:09]} Bb7 {[%clk 01:11:34]} {[%emt
00:01:06]} 11. Qe2 {[%clk 01:13:21]} {[%emt 00:02:42]} c5 {[%clk 01:08:41]}
{[%emt 00:03:23]} 12. dxc5 {[%clk 01:07:41]} {[%emt 00:06:10]} Bxc5 {[%clk
01:08:30]} {[%emt 00:00:40]} 13. Nc1 {[%clk 01:03:34]} {[%emt 00:04:37]} O-O
{[%clk 01:02:32]} {[%emt 00:06:29]} 14. Nb3 {[%clk 01:01:35]} {[%emt 00:02:29]}
Bb6 {[%clk 01:00:54]} {[%emt 00:02:08]} 15. O-O {[%clk 01:01:00]} {[%emt
00:01:03]} Nc6 {[%clk 00:59:39]} {[%emt 00:01:47]} 16. Rad1 {[%clk 00:55:37]}
{[%emt 00:05:53]} Ne5 {[%clk 00:57:11]} {[%emt 00:02:57]} 17. Nxe5 {[%clk
00:54:58]} {[%emt 00:01:09]} Qxe5 {[%clk 00:57:33]} {[%emt 00:00:09]} 18. Rfe1
{[%clk 00:51:29]} {[%emt 00:03:58]} a5 {[%clk 00:52:36]} {[%emt 00:05:28]} 19.
Nc1 {[%clk 00:44:31]} {[%emt 00:07:28]} Rfd8 {[%clk 00:45:33]} {[%emt
00:07:33]} 20. Nd3 {[%clk 00:43:38]} {[%emt 00:01:23]} Qg5 {[%clk 00:43:43]}
{[%emt 00:02:20]} 21. b3 {[%clk 00:31:29]} {[%emt 00:12:39]} Rd4 {[%clk
00:39:17]} {[%emt 00:04:54]} 22. Qf3 {[%clk 00:31:03]} {[%emt 00:00:57]} Rad8
{[%clk 00:36:38]} {[%emt 00:03:09]} 23. Nb2 {[%clk 00:27:54]} {[%emt 00:03:39]}
Rxd1 {[%clk 00:23:22]} {[%emt 00:13:47]} 24. Nxd1 {[%clk 00:25:02]} {[%emt
00:03:22]} Qd2 {[%clk 00:21:06]} {[%emt 00:02:46]} 25. Kf1 {[%clk 00:21:36]}
{[%emt 00:03:55]} Qc2 {[%clk 00:20:15]} {[%emt 00:01:18]} 26. Ne3 {[%clk
00:18:16]} {[%emt 00:03:54]} Qxe4 {[%clk 00:18:13]} {[%emt 00:02:32]} 27. Qxe4
{[%clk 00:18:39]} {[%emt 00:00:06]} Bxe4 {[%clk 00:18:36]} {[%emt 00:00:08]} 28.
Rd1 {[%clk 00:18:47]} {[%emt 00:00:22]} Rxd1+ {[%clk 00:18:19]} {[%emt
00:00:47]} 29. Nxd1 {[%clk 00:19:12]} {[%emt 00:00:05]} Bc2 {[%clk 00:18:34]}
{[%emt 00:00:14]} 30. Nb2 {[%clk 00:19:39]} {[%emt 00:00:03]} g5 {[%clk
00:11:57]} {[%emt 00:07:08]} 31. f3 {[%clk 00:19:36]} {[%emt 00:00:33]} Kg7
{[%clk 00:12:00]} {[%emt 00:00:26]} 32. Nd3 {[%clk 00:19:57]} {[%emt 00:00:09]}
Kf6 {[%clk 00:10:49]} {[%emt 00:01:41]} 33. Ke2 {[%clk 00:20:24]} {[%emt
00:00:04]} h5 {[%clk 00:09:19]} {[%emt 00:01:59]} 34. Kd2 {[%clk 00:17:27]}
{[%emt 00:03:27]} Bxd3 {[%clk 00:07:37]} {[%emt 00:02:13]} 35. Kxd3 {[%clk
00:17:34]} {[%emt 00:00:23]} Ke5 {[%clk 00:07:59]} {[%emt 00:00:07]} 36. h3
{[%clk 00:17:05]} Kf4 {[%clk 00:07:41]} {[%emt 00:01:46]} 37. Ke2 {[%clk
00:17:32]} Bc5 {[%clk 00:03:37]} {[%emt 00:04:38]} 38. Bb5 {[%clk 00:17:32]} h4
{[%clk 00:02:48]} {[%emt 00:01:50]} 39. Bc4 {[%clk 00:17:23]} Bb6 {[%clk
00:03:06]} {[%emt 00:00:51]} 40. Bb5 {[%clk 00:17:45]} f5 {[%emt 00:00:40]} 41.
Bc4 {[%clk 00:17:57]} {[%emt 00:00:04]} e5 {[%clk 00:02:50]} {[%emt 00:00:57]}
42. Bd5 {[%clk 00:17:55]} {[%emt 00:00:33]} e4 {[%clk 00:02:08]} {[%emt
00:01:11]} 43. fxe4 {[%clk 00:18:19]} {[%emt 00:00:07]} fxe4 {[%clk 00:01:47]}
{[%emt 00:00:50]} 44. Be6 {[%clk 00:18:08]} {[%emt 00:00:41]} Kg3 {[%clk
00:01:31]} {[%emt 00:00:48]} 45. Kf1 {[%clk 00:18:32]} {[%emt 00:00:05]} Bc5
{[%clk 00:01:40]} {[%emt 00:00:21]} 46. Bg4 {[%clk 00:18:42]} {[%emt 00:00:19]}
e3 {[%clk 00:01:44]} {[%emt 00:00:27]} 47. Bf3 {[%clk 00:18:47]} {[%emt
00:00:25]} Bb6 {[%clk 00:01:33]} {[%emt 00:00:40]} 48. Bg4 {[%clk 00:19:00]}
{[%emt 00:00:16]} Bc5 {[%clk 00:01:56]} {[%emt 00:00:08]} 1/2-1/2